fUST/lending_fUST_20251219
["ID","MTS","AMOUNT","RATE_DAILY","PERIOD"]
[399084268,1766107445570,1000.0,0.00013821,2]
[399084269,1766107445595,1500.0,0.00014368,2]
[399084270,1766107445624,513.00131638,0.00014368,2]
[399084271,1766107445652,2000.0,0.00014916,2]
[399084272,1766107445897,500.0,0.00013699,2]
[399084273,1766107445937,1000.0,0.00014247,2]
[399084274,1766107445963,500.0,0.00013699,2]
[399084275,1766107446001,617.18761481,0.00014795,2]
[399084276,1766107446023,882.81238519,0.00014795,2]
[399084277,1766107446048,1000.0,0.00014247,2]
[399084278,1766107446081,1500.0,0.00014795,2]
[399084279,1766107448182,500.0,0.00013699,2]
[399084280,1766107448226,1000.0,0.00014247,2]
[399084281,1766107448281,1500.0,0.00014795,2]
[399084287,1766107455649,3617.19761481,0.00015178,2]
[399084288,1766107455671,1382.80238519,0.00015178,2]
[399084289,1766107479243,5000.0,0.00015178,2]
[399084290,1766107499526,293.06,0.00015008,2]
[399084291,1766107507690,500.0,0.00013699,2]
[399084292,1766107507719,1000.0,0.00014247,2]
[399084293,1766107507776,376.11386807,0.00014795,2]
[399084294,1766107508419,1448.03374674,0.00015178,2]
[399084295,1766107508474,3551.96625326,0.00015178,2]
[399084296,1766107525201,500.0,0.00013699,2]
[399084297,1766107525257,294.9527478,0.00014247,2]
[399084298,1766107531365,5000.0,0.00015178,2]
[399084362,1766107554453,653.09099894,0.00015178,2]
[399084363,1766107554478,4346.90900106,0.00015178,2]
[399084364,1766107556089,-150.0,0.00015287,2]
[399084365,1766107556109,-300.0,0.00015341,2]
[399084366,1766107556130,-959.0,0.00015341,2]
[399084367,1766107556148,-2125.67765849,0.00015342,2]
[399084368,1766107556170,-145.26267955,0.00015342,2]
[399084370,1766107563956,1000.0,0.00013821,2]
[399084371,1766107564028,1387.44068896,0.00014368,2]
[399084372,1766107567307,500.0,0.00013273,2]
[399084373,1766107568087,500.0,0.00013699,2]
[399084374,1766107568753,500.0,0.00013273,2]
[399084375,1766107570488,500.0,0.00013699,2]
[399084376,1766107570541,1000.0,0.00014247,2]
[399084377,1766107570596,265.66030998,0.00014795,2]
[399084378,1766107570619,1234.33969002,0.00014795,2]
[399084379,1766107571107,1992.04,0.00015178,2]
[399084380,1766107572539,500.0,0.00013699,2]
[399084381,1766107572587,1000.0,0.00014247,2]
[399084382,1766107572736,1500.0,0.00014795,2]
[399084383,1766107579609,3773.63030998,0.00015178,2]
[399084384,1766107579633,1226.36969002,0.00015178,2]
[399084385,1766107579767,289.33,8.906e-05,2]
[399084386,1766107580175,578.66,9.716e-05,2]
[399084388,1766107580559,867.99,0.00010525,2]
[399084391,1766107580952,1157.31,0.00011335,2]
[399084392,1766107581340,1446.64,0.00012145,2]
[399084393,1766107581790,1735.97,0.00012954,2]
[399084396,1766107582151,2025.3,0.00013764,2]
[399084401,1766107582556,672.44030998,0.00014573,2]
[399084402,1766107582586,1642.18969002,0.00014573,2]
[399084416,1766107602563,5000.0,0.00015178,2]
[399084433,1766107623634,500.0,0.00013273,2]
[399084434,1766107623688,1000.0,0.00013821,2]
[399084435,1766107623746,1500.0,0.00014368,2]
[399084436,1766107623802,1809.58901186,0.00014916,2]
[399084445,1766107625494,5000.0,0.00015178,2]
[399084446,1766107626469,190.42098814,0.00013699,2]
[399084447,1766107626492,309.57901186,0.00013699,2]
[399084448,1766107626517,1000.0,0.00014247,2]
[399084449,1766107626750,500.0,0.00013273,2]
[399084450,1766107626795,549.84083989,0.00013821,2]
[399084451,1766107627137,-279.73522998,0.00015341,2]
[399084460,1766107632074,-20.26477002,0.00015341,2]
[399084461,1766107632189,-300.0,0.00015341,2]
[399084462,1766107632229,-854.73732045,0.00015342,2]
[399084463,1766107632251,-461.53195599,0.00015342,2]
[399084467,1766107639082,-102.71199795,0.00015342,2]
[399084468,1766107639103,-1063.56375287,0.00015342,2]
[399084469,1766107648424,5000.0,0.00015178,2]
[399084470,1766107658851,224.91,0.00014897,2]
[399084471,1766107671035,2415.68014825,0.00015178,2]
[399084472,1766107671060,2584.31985175,0.00015178,2]
[399084474,1766107683918,500.0,0.00013699,2]
[399084475,1766107683967,686.17747132,0.00014247,2]
[399084476,1766107683995,500.0,0.00013699,2]
[399084477,1766107684023,920.48916977,0.00014247,2]
[399084478,1766107684374,1000.0,0.00013821,2]
[399084479,1766107684434,500.0,0.00013273,2]
[399084480,1766107684476,1500.0,0.00014368,2]
[399084481,1766107684535,1809.02350716,0.00014916,2]
[399084482,1766107684556,192.84336827,0.00014916,2]
[399084483,1766107686260,500.0,0.00013273,2]
[399084484,1766107686312,1000.0,0.00013821,2]
[399084485,1766107686367,1139.8318198,0.00014368,2]
[399084486,1766107687788,5738.1998922,0.000125,2]
[399084487,1766107689426,500.0,0.00013699,2]
[399084488,1766107689477,929.13491973,0.00014795,2]
[399084489,1766107689500,570.86508027,0.00014795,2]
[399084490,1766107689537,1000.0,0.00014247,2]
[399084491,1766107694032,5000.0,0.00015178,2]
[399084492,1766107694286,1015.9453555,0.00015,2]
[399084493,1766107700381,288.52684286,0.0001,2]
[399084494,1766107705154,693.20364357,0.0001,7]
[399084495,1766107707719,1431.4690778,0.00015,2]
[399084496,1766107707740,5131.47016156,0.00015,2]
[399084498,1766107709465,593.23792267,0.000149,2]
[399084499,1766107709764,1000.0,0.0001,2]
[399084500,1766107713645,300.0,2.5e-05,30]
[399084502,1766107716924,2975.30191577,0.00015178,2]
[399084503,1766107716949,2024.69808423,0.00015178,2]
[399084504,1766107722750,-936.43624713,0.00015342,2]
[399084505,1766107722778,-2000.0,0.00015342,2]
[399084506,1766107739757,259.59,0.00012248,2]
[399084507,1766107740193,519.17,0.00013361,2]
[399084508,1766107740284,3348.37750574,0.00015342,2]
[399084509,1766107740306,1651.62249426,0.00015342,2]
[399084510,1766107740587,778.76,0.00014475,2]
[399084511,1766107743856,518.29820109,0.00013821,2]
[399084512,1766107743885,1500.0,0.00014795,2]
[399084513,1766107743912,1000.0,0.00013821,2]
[399084514,1766107743938,500.0,0.00013699,2]
[399084515,1766107743964,500.0,0.00013273,2]
[399084516,1766107743988,500.0,0.00013699,2]
[399084517,1766107744014,2000.0,0.00014916,2]
[399084518,1766107744040,607.13404103,0.00014247,2]
[399084519,1766107744066,444.19526362,0.00013273,2]
[399084520,1766107744087,55.80473638,0.00013273,2]
[399084521,1766107744113,1500.0,0.00014368,2]
[399084522,1766107744138,1000.0,0.00014247,2]
[399084523,1766107744165,996.8506365,0.00015342,2]
[399084524,1766107744196,1000.0,0.00014247,2]
[399084525,1766107744221,500.0,0.00013699,2]
[399084526,1766107744249,500.0,0.00013699,2]
[399084527,1766107744280,1000.0,0.00014247,2]
[399084528,1766107744304,2011.75147279,0.00015342,2]
[399084529,1766107744328,1435.60315433,0.00014795,2]
[399084530,1766107744348,64.39684567,0.00014795,2]
[399084531,1766107744373,1500.0,0.00014795,2]
[399084532,1766107744399,153.20136075,0.00015342,2]
[399084533,1766107746588,500.0,0.00013273,2]
[399084534,1766107746618,1000.0,0.00013821,2]
[399084535,1766107746672,1500.0,0.00014368,2]
[399084536,1766107746726,1963.86181429,0.00014916,2]
[399084537,1766107746869,500.0,0.00013699,2]
[399084538,1766107746924,1000.0,0.00014247,2]
[399084539,1766107746974,986.70952066,0.00014795,2]
[399084540,1766107747001,500.0,0.00013273,2]
[399084541,1766107747029,331.84045863,0.00013699,2]
[399084542,1766107747063,168.15954137,0.00013699,2]
[399084543,1766107747092,500.0,0.00013699,2]
[399084544,1766107747117,1000.0,0.00013821,2]
[399084545,1766107747143,1000.0,0.00014247,2]
[399084546,1766107747170,1000.0,0.00014247,2]
[399084547,1766107747203,1500.0,0.00014795,2]
[399084548,1766107747233,916.54556866,0.00014795,2]
[399084549,1766107747263,1598.4437683,0.00014368,2]
[399084550,1766107747646,500.0,0.00013273,2]
[399084551,1766107747673,500.0,0.00013273,2]
[399084552,1766107747747,1000.0,0.00013821,2]
[399084553,1766107747810,316.86112167,0.00014368,2]
[399084554,1766107747832,683.13887833,0.00014368,2]
[399084555,1766107749275,-150.0,0.00015363,2]
[399084556,1766107749295,-2000.0,0.00015464,2]
[399084557,1766107749313,-2500.0,0.00015464,2]
[399084558,1766107749333,-1161.10860078,0.00015464,2]
[399084559,1766107749353,-300.0,0.00015529,2]
[399084560,1766107749373,-300.0,0.0001553,120]
[399084561,1766107749395,-300.0,0.0001553,120]
[399084562,1766107749415,-298.23,0.0001553,120]
[399084563,1766107749436,-1038.35,0.00015588,2]
[399084564,1766107749454,-1067.79399869,0.0001589,2]
[399084565,1766107749472,-2500.0,0.0001589,2]
[399084566,1766107749490,-564.32242784,0.00016012,2]
[399084567,1766107749508,-3000.0,0.00016438,2]
[399084568,1766107749528,-1297.94,0.00016701,2]
[399084569,1766107749546,-3500.0,0.00016986,2]
[399084570,1766107749567,-306.0,0.00016987,2]
[399084571,1766107749586,-500.0,0.00017299,2]
[399084572,1766107749606,-1000.0,0.000173,2]
[399084573,1766107749625,-177.0,0.00017363,2]
[399084574,1766107749644,-352.72427297,0.00017534,2]
[399084575,1766107749662,-253.1683334,0.00017644,7]
[399084576,1766107749683,-1557.52,0.00017815,2]
[399084577,1766107749704,-1817.11,0.00018928,2]
[399084578,1766107749723,-21029.79426632,0.00019,2]
[399084579,1766107751167,-26344.84298271,0.00019,2]
[399084580,1766107751188,-903.01771763,0.00019,2]
[399084581,1766107751212,-150.0,0.00019178,2]
[399084582,1766107751233,-300.0,0.00019315,2]
[399084583,1766107751258,-211.00180437,0.00019363,2]
[399084584,1766107751280,-450.0,0.00019452,2]
[399084585,1766107751301,-600.0,0.00019589,2]
[399084586,1766107751323,-171.53541746,0.00019733,2]
[399084587,1766107751345,-188.84192329,0.00019908,2]
[399084588,1766107751370,-2076.7,0.00020042,2]
[399084589,1766107751394,-2336.28,0.00021155,2]
[399084590,1766107751423,-14967.04280923,0.000215,2]
[399084591,1766107755101,-30951.12244021,0.000215,2]
[399084592,1766107755123,-2595.87,0.00022269,2]
[399084593,1766107755141,-500.0,0.00024376,2]
[399084594,1766107755163,-500.0,0.00024376,2]
[399084595,1766107755182,-500.0,0.00024376,2]
[399084596,1766107755201,-276.96963024,0.00024376,2]
[399084597,1766107755224,-500.0,0.00024376,2]
[399084598,1766107755245,-500.0,0.00024376,2]
[399084599,1766107755265,-500.0,0.00024376,2]
[399084600,1766107755287,-500.0,0.00024376,2]
[399084601,1766107755308,-500.0,0.00024376,2]
[399084602,1766107755327,-500.0,0.00024376,2]
[399084603,1766107755347,-500.0,0.00024376,2]
[399084604,1766107755366,-500.0,0.00024376,2]
[399084605,1766107755386,-500.0,0.00024376,2]
[399084606,1766107755406,-636.47839002,0.00024376,2]
[399084607,1766107755426,-500.0,0.00024376,2]
[399084608,1766107755447,-500.0,0.00024376,2]
[399084609,1766107755466,-395.63244772,0.00024376,2]
[399084610,1766107755486,-154.69608878,0.00024376,2]
[399084611,1766107755506,-500.0,0.00024376,2]
[399084612,1766107755525,-500.0,0.00024376,2]
[399084613,1766107755544,-500.0,0.00024376,2]
[399084614,1766107755564,-500.0,0.00024376,2]
[399084615,1766107755584,-500.0,0.00024376,2]
[399084616,1766107755603,-500.0,0.00024376,2]
[399084617,1766107755625,-500.0,0.00024376,2]
[399084618,1766107755646,-500.0,0.00024376,2]
[399084619,1766107755665,-500.0,0.00024376,2]
[399084620,1766107755685,-437.59497685,0.00024376,2]
[399084621,1766107755706,-500.0,0.00024376,2]
[399084622,1766107755726,-500.0,0.00024376,2]
[399084623,1766107755746,-500.0,0.00024376,2]
[399084624,1766107755766,-500.0,0.00024376,2]
[399084625,1766107755786,-500.0,0.00024376,2]
[399084626,1766107755805,-500.0,0.00024376,2]
[399084627,1766107755826,-500.0,0.00024376,2]
[399084628,1766107755846,-500.0,0.00024376,2]
[399084629,1766107755866,-500.0,0.00024376,2]
[399084630,1766107755887,-500.0,0.00024376,2]
[399084631,1766107755907,-500.0,0.00024376,2]
[399084632,1766107755927,-500.0,0.0002465,2]
[399084633,1766107755946,-521.83024585,0.00024924,2]
[399084634,1766107755964,-253.1683334,0.000257,2]
[399084635,1766107755984,-600.0,0.00025709,10]
[399084636,1766107756004,-4094.67440557,0.00026731,2]
[399084637,1766107756022,-561.62781408,0.0002683,2]
[399084638,1766107756041,-224.55842898,0.00026831,2]
[399084639,1766107756061,-365.4599783,0.0002828,30]
[399084640,1766107760608,500.0,0.00013699,2]
[399084641,1766107760664,751.99479687,0.00014247,2]
[399084642,1766107764292,537.91178041,0.00013699,2]
[399084643,1766107766638,500.0,0.00013699,2]
[399084644,1766107766688,1000.0,0.00014247,2]
[399084645,1766107766951,500.0,0.00013273,2]
[399084646,1766107766995,1000.0,0.00013821,2]
[399084647,1766107767079,-5000.0,0.00024953,2]
[399084648,1766107767101,-354.5400217,0.0002828,30]
[399084649,1766107767122,-169.288932,0.0002974,2]
[399084650,1766107767142,-169.288932,0.0002974,120]
[399084651,1766107767168,-864.0,0.00031108,30]
[399084652,1766107767189,-500.0,0.00032877,7]
[399084653,1766107767213,-500.0,0.00032877,7]
[399084654,1766107767235,-156.46,0.00033483,35]
[399084655,1766107767256,-1000.0,0.00034219,30]
[399084656,1766107767274,-378.0,0.00035,6]
[399084657,1766107767294,-1000.0,0.00037641,30]
[399084658,1766107767315,-244.0,0.00037641,30]
[399084659,1766107767333,-93261.95963206,0.0003801,3]
[399084660,1766107767353,-159.51,0.00038045,60]
[399084661,1766107767373,-151.62,0.00038046,60]
[399084662,1766107767393,-159.51,0.00038145,60]
[399084663,1766107767504,-151.62,0.00038146,60]
[399084664,1766107767525,-159.51,0.00038245,60]
[399084665,1766107767546,-200.0,0.00038991,120]
[399084666,1766107767564,-4747.05,0.00039,120]
[399084667,1766107767583,-456.29460959,0.00039725,15]
[399084668,1766107767603,-574.19393343,0.00039725,7]
[399084669,1766107767621,-551.32308607,0.00039725,15]
[399084670,1766107767642,-6148.51231551,0.00039726,15]
[399084671,1766107767662,-6148.51231551,0.00039726,15]
[399084672,1766107767684,-6148.51231551,0.00039726,15]
[399084673,1766107767705,-6148.51231551,0.00039726,15]
[399084674,1766107767725,-6148.51231551,0.00039726,15]
[399084675,1766107767745,-6148.51231551,0.00039726,15]
[399084676,1766107767765,-6148.51231551,0.00039726,15]
[399084677,1766107767786,-6148.51231551,0.00039726,15]
[399084678,1766107767806,-6148.51231551,0.00039726,15]
[399084679,1766107767826,-6148.51231551,0.00039726,15]
[399084680,1766107767846,-6148.51231551,0.00039726,15]
[399084681,1766107767870,-6148.51231551,0.00039726,15]
[399084682,1766107767891,-6148.51231551,0.00039726,15]
[399084683,1766107767911,-6148.51231551,0.00039726,15]
[399084684,1766107767931,-6148.51231551,0.00039726,15]
[399084685,1766107767950,-6148.51231551,0.00039726,15]
[399084686,1766107767970,-6148.51231551,0.00039726,15]
[399084687,1766107767990,-6148.51231551,0.00039726,15]
[399084688,1766107768012,-6148.51231551,0.00039726,15]
[399084689,1766107768033,-6148.51231551,0.00039726,15]
[399084690,1766107768052,-6148.51231551,0.00039726,15]
[399084691,1766107768072,-6148.51231551,0.00039726,15]
[399084692,1766107768092,-6148.51231551,0.00039726,15]
[399084693,1766107768111,-6148.51231551,0.00039726,15]
[399084694,1766107768131,-6148.51231551,0.00039726,15]
[399084695,1766107768150,-6148.51231551,0.00039726,15]
[399084696,1766107768170,-6148.51231551,0.00039726,15]
[399084697,1766107768189,-6148.51231551,0.00039726,15]
[399084698,1766107768211,-6148.51231551,0.00039726,15]
[399084699,1766107768230,-6148.51231551,0.00039726,15]
[399084700,1766107768250,-6148.51231551,0.00039726,15]
[399084701,1766107768271,-6148.51231551,0.00039726,15]
[399084702,1766107768292,-6148.51231551,0.00039726,15]
[399084703,1766107768312,-6148.51231551,0.00039726,15]
[399084704,1766107768332,-6148.51231551,0.00039726,15]
[399084705,1766107768351,-6148.51231551,0.00039726,15]
[399084706,1766107768371,-6148.51231551,0.00039726,15]
[399084707,1766107768390,-6148.51231551,0.00039726,15]
[399084708,1766107768409,-6148.51231551,0.00039726,15]
[399084709,1766107768430,-6148.51231551,0.00039726,15]
[399084710,1766107768450,-6148.51231551,0.00039726,15]
[399084711,1766107768470,-6148.51231551,0.00039726,15]
[399084712,1766107768490,-6148.51231551,0.00039726,15]
[399084713,1766107768509,-6148.51231551,0.00039726,15]
[399084714,1766107768530,-6148.51231551,0.00039726,15]
[399084715,1766107768551,-6148.51231551,0.00039726,15]
[399084716,1766107768572,-6148.51231551,0.00039726,15]
[399084717,1766107768592,-6148.51231551,0.00039726,15]
[399084718,1766107768612,-6148.51231551,0.00039726,15]
[399084719,1766107768631,-6148.51231551,0.00039726,15]
[399084720,1766107768651,-6148.51231551,0.00039726,15]
[399084721,1766107768672,-6148.51231551,0.00039726,15]
[399084722,1766107768691,-6148.51231551,0.00039726,15]
[399084723,1766107768712,-6148.51231551,0.00039726,15]
[399084724,1766107768731,-6148.51231551,0.00039726,15]
[399084725,1766107768752,-6148.51231551,0.00039726,15]
[399084726,1766107768772,-6148.51231551,0.00039726,15]
[399084727,1766107768795,-6148.51231551,0.00039726,15]
[399084728,1766107768819,-6148.51231551,0.00039726,15]
[399084729,1766107768844,-6148.51231551,0.00039726,15]
[399084730,1766107768868,-7235.81442722,0.00039726,15]
[399084731,1766107768892,-7235.81442722,0.00039726,15]
[399084732,1766107768914,-7235.81442722,0.00039726,15]
[399084733,1766107768939,-7235.81442722,0.00039726,15]
[399084734,1766107768963,-7235.81442722,0.00039726,15]
[399084735,1766107768986,-7235.81442722,0.00039726,15]
[399084736,1766107769009,-7235.81442722,0.00039726,15]
[399084737,1766107769034,-7235.81442722,0.00039726,15]
[399084738,1766107769058,-7235.81442722,0.00039726,15]
[399084739,1766107769082,-7235.81442722,0.00039726,15]
[399084740,1766107769107,-7235.81442722,0.00039726,15]
[399084741,1766107769129,-7235.81442722,0.00039726,15]
[399084742,1766107769152,-7235.81442722,0.00039726,15]
[399084743,1766107769175,-7235.81442722,0.00039726,15]
[399084744,1766107769199,-4856.5328505,0.00039726,15]
[399084745,1766107769258,-432.78793894,0.00039726,15]
[399084746,1766107769298,307.523243,0.00013699,2]
[399084747,1766107804427,500.0,0.00013699,2]
[399084748,1766107804462,1910.84528576,0.00015342,2]
[399084749,1766107804652,1000.0,0.00014247,2]
[399084750,1766107804683,808.59601563,0.00014795,2]
[399084751,1766107804711,691.40398437,0.00014795,2]
[399084754,1766107823482,150.0,0.00012691,2]
[399084755,1766107823910,157.14,0.00013845,2]
[399084756,1766107824315,235.71,0.00014998,2]
[399084776,1766107831798,-314.28,0.00016152,2]
[399084778,1766107831808,-157.0,0.000171,2]
[399084780,1766107831818,-392.86,0.00017306,2]
[399084781,1766107831827,-471.43,0.00018459,2]
[399084782,1766107831837,-550.0,0.00019613,2]
[399084783,1766107831847,-5000.0,0.000198,2]
[399084784,1766107831856,-307.523243,0.00020187,2]
[399084785,1766107831865,-628.57,0.00020767,2]
[399084786,1766107831875,-707.14,0.00021921,2]
[399084787,1766107831883,-785.71,0.00023074,2]
[399084788,1766107831892,-307.523243,0.00026676,2]
[399084789,1766107831902,-298.88442353,0.00028032,2]
[399084790,1766107831911,-153.21300047,0.00031108,14]
[399084791,1766107831920,-307.523243,0.00033165,2]
[399084792,1766107831930,-169.5285429,0.000336,2]
[399084794,1766107831938,-250.0,0.00038009,3]
[399084796,1766107831947,-250.0,0.00038009,3]
[399084798,1766107831956,-250.0,0.00038009,3]
[399084800,1766107831965,-250.0,0.00038009,3]
[399084802,1766107831975,-250.0,0.00038009,3]
[399084803,1766107831986,-250.0,0.00038009,3]
[399084805,1766107831996,-255.98117554,0.00038009,3]
[399084807,1766107832005,-307.523243,0.00039654,2]
[399084809,1766107832015,-1776.9516154,0.00039725,15]
[399084811,1766107832024,-500.0,0.00039725,15]
[399084813,1766107832033,-629.9350629,0.00039725,15]
[399084814,1766107832043,-1776.9516154,0.00039725,15]
[399084815,1766107832052,-612.21305278,0.00039725,15]
[399084816,1766107832062,-1776.9516154,0.00039725,15]
[399084817,1766107832071,-1529.09503964,0.00039725,15]
[399084818,1766107832108,-247.85657576,0.00039725,15]
[399084819,1766107832118,-1776.9516154,0.00039725,15]
[399084820,1766107832127,-1776.9516154,0.00039725,15]
[399084821,1766107832137,-823.22322144,0.00039725,15]
[399084822,1766107837895,-953.72839396,0.00039725,15]
[399084823,1766107837905,-1046.27160604,0.00039725,15]
[399084824,1766107837917,-730.68000936,0.00039725,15]
[399084825,1766107837927,-1776.9516154,0.00039725,15]
[399084826,1766107837937,-1776.9516154,0.00039725,15]
[399084827,1766107837947,-1776.9516154,0.00039725,15]
[399084828,1766107837956,-1776.9516154,0.00039725,15]
[399084829,1766107837966,-1776.9516154,0.00039725,15]
[399084830,1766107837975,-1776.9516154,0.00039725,15]
[399084831,1766107837984,-1325.57158332,0.00039725,15]
[399084832,1766107837996,-451.38003208,0.00039725,15]
[399084833,1766107838007,-205.66322029,0.00039725,15]
[399084857,1766107838517,-1571.28839511,0.00039725,15]
[399084859,1766107838527,-1776.9516154,0.00039725,15]
[399084861,1766107838537,-1776.9516154,0.00039725,15]
[399084863,1766107838547,-1776.9516154,0.00039725,15]
[399084865,1766107838556,-1776.9516154,0.00039725,15]
[399084867,1766107838566,-324.79421562,0.00039725,15]
[399084869,1766107838578,-1452.15739978,0.00039725,15]
[399084871,1766107838588,-1776.9516154,0.00039725,15]
[399084873,1766107838598,-1776.9516154,0.00039725,15]
[399084875,1766107838608,-1776.9516154,0.00039725,15]
[399084877,1766107838617,-1776.9516154,0.00039725,15]
[399084879,1766107838627,-1776.9516154,0.00039725,15]
[399084881,1766107838637,-1776.9516154,0.00039725,15]
[399084883,1766107838646,-1776.9516154,0.00039725,15]
[399084885,1766107838656,-1776.9516154,0.00039725,15]
[399084887,1766107838665,-1776.9516154,0.00039725,15]
[399084889,1766107838675,-1776.9516154,0.00039725,15]
[399084891,1766107838684,-1776.9516154,0.00039725,15]
[399084893,1766107838693,-1776.9516154,0.00039725,15]
[399084895,1766107838702,-1776.9516154,0.00039725,15]
[399084897,1766107838712,-1776.9516154,0.00039725,15]
[399084899,1766107838722,-1776.9516154,0.00039725,15]
[399084901,1766107838731,-1776.9516154,0.00039725,15]
[399084902,1766107838741,-1776.9516154,0.00039725,15]
[399084904,1766107838750,-1776.9516154,0.00039725,15]
[399084906,1766107838760,-1776.9516154,0.00039725,15]
[399084908,1766107838770,-1776.9516154,0.00039725,15]
[399084910,1766107838780,-1776.9516154,0.00039725,15]
[399084912,1766107838790,-1776.9516154,0.00039725,15]
[399084914,1766107838800,-1776.9516154,0.00039725,15]
[399084916,1766107838811,-1776.9516154,0.00039725,15]
[399084918,1766107838822,-1776.9516154,0.00039725,15]
[399084920,1766107838833,-1776.9516154,0.00039725,15]
[399084922,1766107838844,-1776.9516154,0.00039725,15]
[399084924,1766107838854,-1776.9516154,0.00039725,15]
[399084925,1766107838866,-1776.9516154,0.00039725,15]
[399084927,1766107838877,-1776.9516154,0.00039725,15]
[399084929,1766107838888,-1776.9516154,0.00039725,15]
[399084931,1766107838900,-1776.9516154,0.00039725,15]
[399084933,1766107838912,-1776.9516154,0.00039725,15]
[399084935,1766107838924,-1776.9516154,0.00039725,15]
[399084937,1766107838934,-420.42,0.000398,30]
[399084939,1766107838946,-252.5,0.000398,2]
[399084941,1766107838957,-600.0,0.0004052,60]
[399084943,1766107838968,-31499.0,0.00040832,30]
[399084945,1766107838979,-183.76614309,0.00040832,120]
[399084947,1766107838994,-333.33333333,0.00040832,120]
[399084949,1766107839005,-333.33333333,0.00040832,120]
[399084951,1766107839016,-333.33333333,0.00040832,120]
[399084953,1766107839026,-333.33333333,0.00040832,120]
[399084955,1766107839037,-333.33333333,0.00040832,120]
[399084957,1766107839049,-333.33333333,0.00040832,120]
[399084959,1766107839061,-122570.34757078,0.00040832,30]
[399084961,1766107839072,-175.78573521,0.00040832,120]
[399084963,1766107839084,-4094.67440556,0.00043612,28]
[399084965,1766107839094,-308.76375143,0.00044148,2]
[399084967,1766107839104,-720.0,0.00044571,60]
[399084969,1766107839115,-10095.86,0.000449,120]
[399084971,1766107839125,-307.523243,0.00046143,2]
[399084973,1766107839135,-350.5,0.00047712,60]
[399084975,1766107839146,-632.0,0.00048925,2]
[399084977,1766107839155,-1361.0,0.00048925,2]
[399084978,1766107839165,-900.244,0.00048925,2]
[399084980,1766107839176,-415.0,0.00048925,2]
[399084982,1766107839186,-864.0,0.00049029,120]
[399084984,1766107839196,-500.0,0.00049315,120]
[399084986,1766107839210,-500.0,0.00049315,120]
[399084988,1766107839226,-2489.3,0.00049315,120]
[399084990,1766107839239,-500.0,0.00049589,120]
[399084992,1766107839250,-500.0,0.00049589,120]
[399084995,1766107839262,-2489.3,0.00049589,120]
[399084996,1766107839272,-500.0,0.00049863,120]
[399084998,1766107839283,-353.0,0.00049863,120]
[399085000,1766107839294,-2489.3,0.00049863,120]
[399085002,1766107839304,-1000.0,0.0005,120]
[399085004,1766107839314,-181.07467765,0.00050136,120]
[399085006,1766107839323,-2489.3,0.00050136,120]
[399085008,1766107839334,-2489.3,0.0005041,120]
[399085010,1766107839343,-2489.3,0.00050684,120]
[399085012,1766107839353,-2489.3,0.00050958,120]
[399085014,1766107839363,-1000.0,0.00051,120]
[399085016,1766107839373,-2489.3,0.00051232,120]
[399085018,1766107839388,-2489.3,0.00051506,120]
[399085020,1766107839405,-2489.3,0.0005178,120]
[399085022,1766107839414,-1361.0,0.00051925,120]
[399085024,1766107839423,-415.0,0.00051925,120]
[399085026,1766107839433,-1000.0,0.00052,120]
[399085028,1766107839442,-2489.3,0.00052054,120]
[399085030,1766107839452,-2489.3,0.00052328,120]
[399085032,1766107839461,-31327.2593,0.0005244,120]
[399085034,1766107839470,-2489.3,0.00052602,120]
[399085035,1766107839480,-307.523243,0.00052632,2]
[399085037,1766107839490,-420.42,0.000527,30]
[399085039,1766107839501,-2489.3,0.00052876,120]
[399085041,1766107839511,-618.70453881,0.00052968,25]
[399085053,1766107839623,-152.0,0.00053,120]